[Event "***Titled Tuesday 3|2 Blitz"]
[Site "Chess.com"]
[Date "2017.02.07"]
[Round "8"]
[White "ZEN-22"]
[Black "macko06"]
[Result "0-1"]
[WhiteElo "2371"]
[BlackElo "2381"]
[TimeControl "180+2"]
[EndTime "15:02:20 PST"]
[Termination "macko06 won by resignation"]

1. e4 {[%clk 0:03:02]} 1... e6 {[%clk 0:03:00.9]} 2. d4 {[%clk 0:03:02]} 2... d5
{[%clk 0:03:02.1]} 3. exd5 {[%clk 0:03:03.3]} 3... exd5 {[%clk 0:03:03.2]} 4. c4
{[%clk 0:03:05.2]} 4... Nf6 {[%clk 0:03:03.7]} 5. Nc3 {[%clk 0:03:06]} 5... Be7
{[%clk 0:03:01.6]} 6. Bg5 {[%clk 0:03:05.3]} 6... Be6 {[%clk 0:02:59.1]} 7. Qb3
{[%clk 0:02:57.6]} 7... dxc4 {[%clk 0:02:49.7]} 8. Bxc4 {[%clk 0:02:36.7]} 8...
Bxc4 {[%clk 0:02:48.3]} 9. Qxc4 {[%clk 0:02:38.6]} 9... O-O {[%clk 0:02:49.6]}
10. Nf3 {[%clk 0:02:39.5]} 10... Nbd7 {[%clk 0:02:48.3]} 11. O-O {[%clk
0:02:35.4]} 11... Nb6 {[%clk 0:02:49.4]} 12. Qd3 {[%clk 0:02:36.8]} 12... Nfd5
{[%clk 0:02:49.2]} 13. Bd2 {[%clk 0:02:34.8]} 13... Nxc3 {[%clk 0:02:45.7]} 14.
bxc3 {[%clk 0:02:34.6]} 14... Qd5 {[%clk 0:02:46.3]} 15. Rfe1 {[%clk 0:02:29.9]}
15... Bf6 {[%clk 0:02:46.8]} 16. a4 {[%clk 0:02:22.4]} 16... Nc4 {[%clk
0:02:46.4]} 17. Bf4 {[%clk 0:02:16.6]} 17... c6 {[%clk 0:02:44]} 18. Be5 {[%clk
0:02:17.3]} 18... Nxe5 {[%clk 0:02:20.8]} 19. Nxe5 {[%clk 0:02:16.3]} 19... Rfe8
{[%clk 0:02:22.3]} 20. c4 {[%clk 0:02:06.1]} 20... Qd6 {[%clk 0:02:19.8]} 21.
Nf3 {[%clk 0:02:03.3]} 21... Rad8 {[%clk 0:02:15.3]} 22. g3 {[%clk 0:01:55.1]}
22... g6 {[%clk 0:02:14.4]} 23. Rxe8+ {[%clk 0:01:54.4]} 23... Rxe8 {[%clk
0:02:14.8]} 24. a5 {[%clk 0:01:55.8]} 24... Rd8 {[%clk 0:02:06.2]} 25. Rd1
{[%clk 0:01:39.6]} 25... Qb4 {[%clk 0:02:04.4]} 26. Rb1 {[%clk 0:01:39.9]} 26...
Qxa5 {[%clk 0:02:02.5]} 27. Rxb7 {[%clk 0:01:40.1]} 27... Bxd4 {[%clk
0:01:55.8]} 28. Nxd4 {[%clk 0:01:36.9]} 28... Qa1+ {[%clk 0:01:56.3]} 29. Kg2
{[%clk 0:01:38.2]} 29... Qxd4 {[%clk 0:01:57.1]} 30. Qe2 {[%clk 0:01:24.7]}
30... a5 {[%clk 0:01:34.9]} 31. h4 {[%clk 0:01:22.9]} 31... h5 {[%clk
0:01:33.6]} 32. Qe7 {[%clk 0:01:17.3]} 32... Rf8 {[%clk 0:01:34]} 33. c5 {[%clk
0:01:13.4]} 33... Qd5+ {[%clk 0:01:31.9]} 34. Kg1 {[%clk 0:01:13.8]} 34... a4
{[%clk 0:01:28.7]} 35. Rd7 {[%clk 0:01:14]} 35... Qc4 {[%clk 0:01:27.5]} 36. Qe3
{[%clk 0:00:48.1]} 36... Qb4 {[%clk 0:01:14.2]} 37. Ra7 {[%clk 0:00:39.7]} 37...
Qb1+ {[%clk 0:01:04.7]} 38. Kh2 {[%clk 0:00:40.2]} 38... Qa2 {[%clk 0:01:06.3]}
39. Ra6 {[%clk 0:00:36.9]} 39... Rc8 {[%clk 0:01:01.6]} 40. Qf4 {[%clk
0:00:35.3]} 40... Qd5 {[%clk 0:00:58.9]} 41. Qe3 {[%clk 0:00:30.3]} 41... Qc4
{[%clk 0:00:53.2]} 42. Ra7 {[%clk 0:00:26.1]} 42... Rb8 {[%clk 0:00:50.1]} 43.
Qe7 {[%clk 0:00:21.4]} 43... Qa2 {[%clk 0:00:41.5]} 44. Qf6 {[%clk 0:00:21.5]}
44... Re8 {[%clk 0:00:35.4]} 45. Qf4 {[%clk 0:00:21.3]} 45... Re2 {[%clk
0:00:32.4]} 46. Kg1 {[%clk 0:00:19.9]} 46... Qb1+ {[%clk 0:00:25.3]} 47. Kg2
{[%clk 0:00:20.1]} 47... Qe4+ {[%clk 0:00:24.7]} 48. Qxe4 {[%clk 0:00:20.6]}
48... Rxe4 {[%clk 0:00:26.6]} 49. Ra6 {[%clk 0:00:22.2]} 49... a3 {[%clk
0:00:21.3]} 50. Rxa3 {[%clk 0:00:17.2]} 50... Rc4 {[%clk 0:00:22.7]} 51. Ra5
{[%clk 0:00:17.9]} 51... Kg7 {[%clk 0:00:23.5]} 52. Kf3 {[%clk 0:00:19.5]} 52...
Kf6 {[%clk 0:00:25.1]} 53. Ke3 {[%clk 0:00:21.2]} 53... Rc2 {[%clk 0:00:26.1]}
54. Kd4 {[%clk 0:00:17.9]} 54... Rd2+ {[%clk 0:00:20.8]} 55. Ke4 {[%clk
0:00:18.5]} 55... Rc2 {[%clk 0:00:17.2]} 56. Kd3 {[%clk 0:00:19.4]} 56... Rc1
{[%clk 0:00:17.2]} 57. Kd2 {[%clk 0:00:19.9]} 57... Rc4 {[%clk 0:00:17.8]} 58.
Kd3 {[%clk 0:00:21.3]} 58... Rc1 {[%clk 0:00:18.9]} 59. Ke3 {[%clk 0:00:22.1]}
59... Rc3+ {[%clk 0:00:19.9]} 60. Kd4 {[%clk 0:00:23.5]} 60... Rc2 {[%clk
0:00:21.1]} 61. f3 {[%clk 0:00:24.8]} 61... Rd2+ {[%clk 0:00:18.4]} 62. Ke3
{[%clk 0:00:25.6]} 62... Rd5 {[%clk 0:00:16.7]} 63. Ke4 {[%clk 0:00:26.1]} 63...
Re5+ {[%clk 0:00:13.5]} 64. Kd4 {[%clk 0:00:27.1]} 64... Re6 {[%clk 0:00:14.2]}
65. g4 {[%clk 0:00:27.7]} 65... hxg4 {[%clk 0:00:14.5]} 66. fxg4 {[%clk
0:00:29.1]} 66... Kg7 {[%clk 0:00:15.8]} 67. Ra6 {[%clk 0:00:30.2]} 67... Rf6
{[%clk 0:00:17.2]} 68. g5 {[%clk 0:00:31.2]} 68... Re6 {[%clk 0:00:15.7]} 69.
Rb6 {[%clk 0:00:33.1]} 69... f5 {[%clk 0:00:11.4]} 70. Rb7+ {[%clk 0:00:33.5]}
70... Kf8 {[%clk 0:00:11.6]} 71. Rd7 {[%clk 0:00:34.8]} 71... Ke8 {[%clk
0:00:11]} 72. Rg7 {[%clk 0:00:35.6]} 72... Kf8 {[%clk 0:00:12.1]} 73. Rc7 {[%clk
0:00:36.7]} 73... Ke8 {[%clk 0:00:13.4]} 74. Rh7 {[%clk 0:00:35.4]} 74... Kf8
{[%clk 0:00:14]} 75. h5 {[%clk 0:00:36.8]} 75... gxh5 {[%clk 0:00:14.7]} 76.
Rxh5 {[%clk 0:00:36.1]} 76... Kg7 {[%clk 0:00:16.1]} 77. Rh2 {[%clk 0:00:34]}
77... Kg6 {[%clk 0:00:17]} 78. Rh6+ {[%clk 0:00:34.9]} 78... Kf7 {[%clk
0:00:17.4]} 79. Rh7+ {[%clk 0:00:36.2]} 79... Kg8 {[%clk 0:00:13.6]} 80. Rh4
{[%clk 0:00:32.7]} 80... Kg7 {[%clk 0:00:14.3]} 81. Rh2 {[%clk 0:00:33.1]} 81...
Re4+ {[%clk 0:00:13.4]} 82. Kd3 {[%clk 0:00:33.7]} 82... Re5 {[%clk 0:00:14.1]}
83. Kd4 {[%clk 0:00:34.1]} 83... Re6 {[%clk 0:00:12.4]} 84. Rf2 {[%clk
0:00:33.5]} 84... Kg6 {[%clk 0:00:13.3]} 85. Rg2 {[%clk 0:00:35.4]} 85... Re4+
{[%clk 0:00:12.9]} 86. Kd3 {[%clk 0:00:36.1]} 86... Re5 {[%clk 0:00:12.7]} 87.
Kd4 {[%clk 0:00:37]} 87... Rd5+ {[%clk 0:00:14.1]} 88. Kc4 {[%clk 0:00:38.3]}
88... f4 {[%clk 0:00:15.4]} 89. Rg1 {[%clk 0:00:38.8]} 89... Rxg5 {[%clk
0:00:15.3]} 90. Re1 {[%clk 0:00:40.3]} 90... Rf5 {[%clk 0:00:15.9]} 91. Kd4
{[%clk 0:00:39.4]} 91... f3 {[%clk 0:00:15.6]} 92. Rf1 {[%clk 0:00:40.5]} 92...
f2 {[%clk 0:00:14.4]} 93. Ke4 {[%clk 0:00:41.2]} 93... Kf6 {[%clk 0:00:15.5]}
94. Kd4 {[%clk 0:00:41.4]} 94... Ke6 {[%clk 0:00:16.8]} 95. Ke4 {[%clk
0:00:42.7]} 95... Rf8 {[%clk 0:00:17]} 96. Kd4 {[%clk 0:00:42.6]} 96... Rf5
{[%clk 0:00:16.9]} 97. Ke4 {[%clk 0:00:43.7]} 97... Re5+ {[%clk 0:00:16.3]} 98.
Kd4 {[%clk 0:00:45]} 98... Re2 {[%clk 0:00:16.1]} 99. Kd3 {[%clk 0:00:45.2]}
99... Ra2 {[%clk 0:00:16.6]} 100. Ke4 {[%clk 0:00:46.4]} 100... Ra4+ {[%clk
0:00:16.3]} 101. Kd3 {[%clk 0:00:47.1]} 101... Ra3+ {[%clk 0:00:16.2]} 102. Ke4
{[%clk 0:00:48.4]} 102... Ra4+ {[%clk 0:00:16.6]} 103. Kd3 {[%clk 0:00:49.3]}
103... Ra2 {[%clk 0:00:18.5]} 104. Ke4 {[%clk 0:00:50.5]} 104... Rb2 {[%clk
0:00:19.7]} 105. Kd4 {[%clk 0:00:50.9]} 105... Kf5 {[%clk 0:00:21.1]} 106. Kc3
{[%clk 0:00:52]} 106... Ra2 {[%clk 0:00:22]} 107. Kb3 {[%clk 0:00:52.9]} 107...
Re2 {[%clk 0:00:22.8]} 108. Kb4 {[%clk 0:00:53.8]} 108... Ke4 {[%clk 0:00:22.9]}
109. Kc4 {[%clk 0:00:54.9]} 109... Rc2+ {[%clk 0:00:23.5]} 110. Kb3 {[%clk
0:00:56]} 110... Kd3 {[%clk 0:00:24.1]} 111. Rh1 {[%clk 0:00:56.3]} 111... Rxc5
{[%clk 0:00:23.6]} 112. Rh6 {[%clk 0:00:54.1]} 112... Ke4 {[%clk 0:00:21.7]}
113. Rf6 {[%clk 0:00:54.8]} 113... Rf5 {[%clk 0:00:22.6]} 114. Rxc6 {[%clk
0:00:55.4]} 114... f1=Q {[%clk 0:00:23.3]} 115. Rc1 {[%clk 0:00:57.3]} 115...
Qxc1 {[%clk 0:00:23.9]} 116. Ka2 {[%clk 0:00:57.7]} 116... Ra5+ {[%clk
0:00:22.4]} 0-1

[Event "***Titled Tuesday 3|2 Blitz"]
[Site "Chess.com"]
[Date "2017.02.07"]
[Round "8"]
[White "oskariot"]
[Black "FelixBlohberger"]
[Result "1/2-1/2"]
[WhiteElo "2491"]
[BlackElo "2110"]
[TimeControl "180+2"]
[EndTime "15:02:45 PST"]
[Termination "Game drawn by agreement"]

1. g3 {[%clk 0:03:02]} 1... c5 {[%clk 0:02:57.5]} 2. Bg2 {[%clk 0:03:03.9]} 2...
Nc6 {[%clk 0:02:59]} 3. Nf3 {[%clk 0:03:04]} 3... g6 {[%clk 0:03:00.2]} 4. c3
{[%clk 0:03:02.4]} 4... e5 {[%clk 0:02:51.7]} 5. O-O {[%clk 0:03:02.4]} 5... Bg7
{[%clk 0:02:48.8]} 6. d3 {[%clk 0:03:03.6]} 6... Nge7 {[%clk 0:02:49]} 7. a3
{[%clk 0:03:03.8]} 7... O-O {[%clk 0:02:50.4]} 8. b4 {[%clk 0:03:04.1]} 8...
cxb4 {[%clk 0:02:48]} 9. axb4 {[%clk 0:03:05.2]} 9... d5 {[%clk 0:02:48.6]} 10.
b5 {[%clk 0:03:04.2]} 10... Nb8 {[%clk 0:02:49.6]} 11. Ba3 {[%clk 0:02:50.2]}
11... Nd7 {[%clk 0:02:33.7]} 12. Nbd2 {[%clk 0:02:26]} 12... b6 {[%clk
0:01:36.6]} 13. c4 {[%clk 0:02:13.4]} 13... Bb7 {[%clk 0:00:54]} 14. cxd5 {[%clk
0:02:11.5]} 14... Nxd5 {[%clk 0:00:41.4]} 15. Bxf8 {[%clk 0:02:10.5]} 15... Nc3
{[%clk 0:00:42.6]} 16. Qe1 {[%clk 0:02:07.3]} 16... Qxf8 {[%clk 0:00:43]} 17.
Rc1 {[%clk 0:01:08.4]} 17... Nxb5 {[%clk 0:00:41.2]} 18. Nc4 {[%clk 0:01:08.9]}
18... Nd6 {[%clk 0:00:17]} 19. Ne3 {[%clk 0:00:33.5]} 19... a5 {[%clk
0:00:11.2]} 20. Rc7 {[%clk 0:00:33.8]} 20... Qd8 {[%clk 0:00:11.7]} 21. Rc1
{[%clk 0:00:25.2]} 21... b5 {[%clk 0:00:10.3]} 22. Qd2 {[%clk 0:00:16.1]} 22...
Qb6 {[%clk 0:00:10.2]} 23. Ne1 {[%clk 0:00:08.6]} 23... Bxg2 {[%clk 0:00:10.5]}
24. N1xg2 {[%clk 0:00:10.1]} 24... Qb7 {[%clk 0:00:11.2]} 25. Qc2 {[%clk
0:00:10.4]} 25... Rc8 {[%clk 0:00:12.1]} 26. Qa2 {[%clk 0:00:10.6]} 26... Ra8
{[%clk 0:00:09.5]} 27. Qd5 {[%clk 0:00:10.8]} 27... Qxd5 {[%clk 0:00:10.1]} 28.
Nxd5 {[%clk 0:00:12.3]} 28... a4 {[%clk 0:00:09.1]} 29. Rc7 {[%clk 0:00:13.5]}
29... Nf6 {[%clk 0:00:06.9]} 30. Nb6 {[%clk 0:00:13.9]} 30... Rb8 {[%clk
0:00:06.4]} 31. Nd7 {[%clk 0:00:13.4]} 31... Nxd7 {[%clk 0:00:06.1]} 32. Rxd7
{[%clk 0:00:14.9]} 32... Ne8 {[%clk 0:00:06]} 33. Ra1 {[%clk 0:00:12.9]} 33...
Bf8 {[%clk 0:00:04.2]} 34. e4 {[%clk 0:00:13.8]} 34... a3 {[%clk 0:00:04.8]} 35.
Ne3 {[%clk 0:00:10.1]} 35... Nf6 {[%clk 0:00:05.5]} 36. Ra7 {[%clk 0:00:05.6]}
36... b4 {[%clk 0:00:06.8]} 37. Nc4 {[%clk 0:00:06.4]} 37... Rd8 {[%clk
0:00:03.5]} 38. Rd1 {[%clk 0:00:03.3]} 38... Ng4 {[%clk 0:00:03]} 39. Kf1 {[%clk
0:00:04.1]} 39... h5 {[%clk 0:00:03.9]} 40. Ke2 {[%clk 0:00:05.3]} 40... Nxh2
{[%clk 0:00:05.3]} 41. Rb1 {[%clk 0:00:06.5]} 41... Ng4 {[%clk 0:00:06.2]} 42.
Rb3 {[%clk 0:00:07.4]} 42... Nf6 {[%clk 0:00:07.4]} 43. Nxe5 {[%clk 0:00:08.7]}
43... Rc8 {[%clk 0:00:05.1]} 44. Nxf7 {[%clk 0:00:09.7]} 44... Rc2+ {[%clk
0:00:05.9]} 45. Ke1 {[%clk 0:00:08]} 45... a2 {[%clk 0:00:06.1]} 46. Kd1 {[%clk
0:00:04.1]} 46... Rxf2 {[%clk 0:00:07]} 47. Kc1 {[%clk 0:00:05.6]} 47... Bg7
{[%clk 0:00:05.7]} 48. e5 {[%clk 0:00:05.8]} 48... Ng4 {[%clk 0:00:05.8]} 49.
Rxb4 {[%clk 0:00:07.3]} 49... Nxe5 {[%clk 0:00:06.3]} 50. Rb8+ {[%clk
0:00:08.3]} 50... Kh7 {[%clk 0:00:07.2]} 51. Nxe5 {[%clk 0:00:09.7]} 51... a1=Q+
{[%clk 0:00:07]} 52. Rxa1 {[%clk 0:00:10.2]} 52... Bxe5 {[%clk 0:00:08.7]} 53.
Ra7+ {[%clk 0:00:11.5]} 53... Kh6 {[%clk 0:00:09.3]} 54. Rg8 {[%clk 0:00:06.8]}
54... Bxg3 {[%clk 0:00:08.1]} 55. Ra6 {[%clk 0:00:08.1]} 55... Bf4+ {[%clk
0:00:09.3]} 56. Kd1 {[%clk 0:00:09.6]} 56... Rg2 {[%clk 0:00:04.4]} 57. Ke1
{[%clk 0:00:11]} 57... h4 {[%clk 0:00:05.5]} 58. Kf1 {[%clk 0:00:11.4]} 58...
Rg4 {[%clk 0:00:03.9]} 59. d4 {[%clk 0:00:11.4]} 59... Kh5 {[%clk 0:00:03]} 60.
Rh8+ {[%clk 0:00:10.7]} 60... Bh6 {[%clk 0:00:03.2]} 61. Ra5+ {[%clk 0:00:12]}
61... Rg5 {[%clk 0:00:02.5]} 62. Rxg5+ {[%clk 0:00:12.6]} 62... Kxg5 {[%clk
0:00:04.2]} 63. d5 {[%clk 0:00:11.9]} 63... h3 {[%clk 0:00:03.8]} 64. d6 {[%clk
0:00:10.5]} 64... Bg7 {[%clk 0:00:04]} 65. Rxh3 {[%clk 0:00:10.2]} 65... Kf6
{[%clk 0:00:04.6]} 66. Rh7 {[%clk 0:00:10.5]} 66... Bf8 {[%clk 0:00:03.8]} 67.
d7 {[%clk 0:00:11.6]} 67... Be7 {[%clk 0:00:05.2]} 68. Kg2 {[%clk 0:00:12.8]}
68... Ke6 {[%clk 0:00:06.4]} 69. Rg7 {[%clk 0:00:07]} 69... g5 {[%clk
0:00:03.4]} 70. Kf3 {[%clk 0:00:04.8]} 70... Kxd7 {[%clk 0:00:04.6]} 71. Kg4
{[%clk 0:00:06.3]} 71... Kd6 {[%clk 0:00:04.7]} 72. Kf5 {[%clk 0:00:07.7]} 72...
Bd8 {[%clk 0:00:04.7]} 73. Rg8 {[%clk 0:00:08.8]} 73... Bc7 {[%clk 0:00:04.3]}
74. Kxg5 {[%clk 0:00:09]} 74... Kc6 {[%clk 0:00:05.6]} 75. Kf5 {[%clk
0:00:10.5]} 75... Kb7 {[%clk 0:00:07.1]} 76. Ke6 {[%clk 0:00:12.4]} 76... Bb8
{[%clk 0:00:08.6]} 77. Kd7 {[%clk 0:00:14.3]} 77... Ka8 {[%clk 0:00:10.1]} 78.
Rg2 {[%clk 0:00:16]} 78... Kb7 {[%clk 0:00:11]} 79. Rb2+ {[%clk 0:00:17.3]}
79... Ka8 {[%clk 0:00:12.5]} 80. Kc6 {[%clk 0:00:19.2]} 80... Ba7 {[%clk
0:00:12.3]} 81. Kc7 {[%clk 0:00:20.7]} 81... Bg1 {[%clk 0:00:11.9]} 82. Rb1
{[%clk 0:00:22.1]} 82... Bf2 {[%clk 0:00:12.6]} 83. Rf1 {[%clk 0:00:23.3]} 83...
Be3 {[%clk 0:00:12.5]} 84. Rf3 {[%clk 0:00:24.2]} 84... Bg1 {[%clk 0:00:13.3]}
85. Rh3 {[%clk 0:00:23.5]} 85... Bf2 {[%clk 0:00:12.2]} 86. Kc6 {[%clk
0:00:22.5]} 86... Ba7 {[%clk 0:00:11.6]} 87. Rb3 {[%clk 0:00:21.2]} 87... Bg1
{[%clk 0:00:09.9]} 88. Kc7 {[%clk 0:00:22.1]} 88... Ba7 {[%clk 0:00:10.5]} 89.
Rb1 {[%clk 0:00:13.7]} 89... Bf2 {[%clk 0:00:09.9]} 90. Rb4 {[%clk 0:00:13.6]}
90... Bg1 {[%clk 0:00:07.5]} 91. Rg4 {[%clk 0:00:13.2]} 91... Bf2 {[%clk
0:00:06.8]} 92. Rg8+ {[%clk 0:00:10.8]} 92... Ka7 {[%clk 0:00:07.8]} 93. Rg2
{[%clk 0:00:12.7]} 93... Bb6+ {[%clk 0:00:09]} 94. Kc6 {[%clk 0:00:14]} 94...
Be3 {[%clk 0:00:10.2]} 95. Ra2+ {[%clk 0:00:11.2]} 95... Kb8 {[%clk 0:00:10.9]}
96. Rb2+ {[%clk 0:00:12.5]} 96... Ka8 {[%clk 0:00:11.6]} 97. Kc7 {[%clk
0:00:13.6]} 97... Ba7 {[%clk 0:00:12.4]} 98. Rb3 {[%clk 0:00:14.3]} 98... Bg1
{[%clk 0:00:12.7]} 99. Rf3 {[%clk 0:00:14.4]} 99... Bh2+ {[%clk 0:00:11.5]} 100.
Kc6 {[%clk 0:00:13.8]} 100... Bb8 {[%clk 0:00:11.8]} 101. Rb3 {[%clk 0:00:14.1]}
101... Ba7 {[%clk 0:00:12.2]} 102. Kc7 {[%clk 0:00:15]} 102... Bg1 {[%clk
0:00:12.6]} 103. Rb2 {[%clk 0:00:16]} 103... Ba7 {[%clk 0:00:12.1]} 104. Rb1
{[%clk 0:00:16.4]} 104... Bf2 {[%clk 0:00:12.3]} 105. Rf1 {[%clk 0:00:16.6]}
105... Bg3+ {[%clk 0:00:12.1]} 106. Kc6 {[%clk 0:00:17.5]} 106... Bb8 {[%clk
0:00:12.9]} 1/2-1/2

[Event "***Titled Tuesday 3|2 Blitz"]
[Site "Chess.com"]
[Date "2017.02.07"]
[Round "9"]
[White "Evgeny81"]
[Black "Vamostodorecto"]
[Result "1-0"]
[WhiteElo "2420"]
[BlackElo "2318"]
[TimeControl "180+2"]
[EndTime "15:10:16 PST"]
[Termination "Evgeny81 won by resignation"]

1. Nf3 {[%clk 0:03:00.4]} 1... d5 {[%clk 0:02:57.7]} 2. g3 {[%clk 0:03:00.2]}
2... Nc6 {[%clk 0:02:58.6]} 3. d4 {[%clk 0:02:58.1]} 3... Bg4 {[%clk 0:02:59.1]}
4. Bg2 {[%clk 0:02:58.6]} 4... Qd7 {[%clk 0:03:00]} 5. O-O {[%clk 0:02:59.8]}
5... O-O-O {[%clk 0:03:00.3]} 6. Nbd2 {[%clk 0:02:59.7]} 6... f6 {[%clk
0:02:57.1]} 7. c4 {[%clk 0:03:00.4]} 7... dxc4 {[%clk 0:02:53.6]} 8. Nxc4 {[%clk
0:02:55.2]} 8... Nxd4 {[%clk 0:02:47.9]} 9. Nxd4 {[%clk 0:02:55.8]} 9... Qxd4
{[%clk 0:02:48.4]} 10. Qb3 {[%clk 0:02:55.6]} 10... b6 {[%clk 0:01:22]} 11. Be3
{[%clk 0:02:52.2]} 11... Qd7 {[%clk 0:01:04.9]} 12. Rfc1 {[%clk 0:02:45.6]}
12... Bxe2 {[%clk 0:00:56.2]} 13. Bxb6 {[%clk 0:02:35.3]} 13... Bxc4 {[%clk
0:00:50.5]} 14. Qxc4 {[%clk 0:02:34.4]} 14... Kb8 {[%clk 0:00:23.6]} 15. Bxc7+
{[%clk 0:02:34]} 1-0

[Event "***Titled Tuesday 3|2 Blitz"]
[Site "Chess.com"]
[Date "2017.02.07"]
[Round "9"]
[White "mrkvoz"]
[Black "TomsKantans"]
[Result "1-0"]
[WhiteElo "2621"]
[BlackElo "2519"]
[TimeControl "180+2"]
[EndTime "15:11:06 PST"]
[Termination "mrkvoz won by resignation"]

1. e4 {[%clk 0:03:02]} 1... c5 {[%clk 0:02:59.7]} 2. Nc3 {[%clk 0:03:03.1]} 2...
Nc6 {[%clk 0:02:59.8]} 3. Bb5 {[%clk 0:03:04.6]} 3... Qc7 {[%clk 0:02:58.3]} 4.
Nf3 {[%clk 0:03:03.6]} 4... Nf6 {[%clk 0:02:58.8]} 5. d3 {[%clk 0:03:03.5]} 5...
a6 {[%clk 0:02:57.1]} 6. Bxc6 {[%clk 0:03:04.3]} 6... Qxc6 {[%clk 0:02:57.5]} 7.
O-O {[%clk 0:03:06.2]} 7... d6 {[%clk 0:02:46.9]} 8. Bg5 {[%clk 0:03:03.4]} 8...
Bg4 {[%clk 0:02:38.8]} 9. h3 {[%clk 0:03:03.8]} 9... Bxf3 {[%clk 0:02:31]} 10.
Qxf3 {[%clk 0:03:04.5]} 10... Nd7 {[%clk 0:02:24.1]} 11. Qg3 {[%clk 0:03:03.6]}
11... e6 {[%clk 0:02:17.8]} 12. Rae1 {[%clk 0:03:00.1]} 12... h6 {[%clk
0:02:15.7]} 13. Be3 {[%clk 0:03:00.4]} 13... O-O-O {[%clk 0:02:16]} 14. d4
{[%clk 0:03:01]} 14... cxd4 {[%clk 0:02:15.7]} 15. Bxd4 {[%clk 0:03:02.9]} 15...
Rg8 {[%clk 0:01:53.1]} 16. Qf3 {[%clk 0:03:01.5]} 16... f6 {[%clk 0:01:53.9]}
17. Qg4 {[%clk 0:03:02.5]} 17... Re8 {[%clk 0:01:51.3]} 18. Qg6 {[%clk 0:03:03]}
18... Ne5 {[%clk 0:01:50.1]} 19. Qg3 {[%clk 0:02:55.4]} 19... Be7 {[%clk
0:01:44.5]} 20. f4 {[%clk 0:02:56.2]} 20... Nd7 {[%clk 0:01:28.1]} 21. f5 {[%clk
0:02:57.4]} 21... Bd8 {[%clk 0:01:29.5]} 22. fxe6 {[%clk 0:02:57.9]} 22... Rxe6
{[%clk 0:01:31.4]} 23. Nd5 {[%clk 0:02:59]} 23... Kb8 {[%clk 0:01:27.1]} 24. c4
{[%clk 0:02:59.4]} 24... Qxc4 {[%clk 0:01:23.6]} 25. Qf2 {[%clk 0:02:55.8]}
25... Nc5 {[%clk 0:01:17.3]} 26. Rc1 {[%clk 0:02:56.3]} 26... Qb5 {[%clk
0:00:44.2]} 27. b4 {[%clk 0:02:55.9]} 1-0

[Event "***Titled Tuesday 3|2 Blitz"]
[Site "Chess.com"]
[Date "2017.02.07"]
[Round "9"]
[White "pastouche06"]
[Black "gmwesley_so"]
[Result "0-1"]
[WhiteElo "2335"]
[BlackElo "2740"]
[TimeControl "180+2"]
[EndTime "15:11:20 PST"]
[Termination "gmwesley_so won by resignation"]

1. d4 {[%clk 0:03:02]} 1... e6 {[%clk 0:02:59.2]} 2. c4 {[%clk 0:03:01.2]} 2...
f5 {[%clk 0:02:59.1]} 3. Nf3 {[%clk 0:02:57.3]} 3... Nf6 {[%clk 0:03:01]} 4. Nc3
{[%clk 0:02:56.6]} 4... Bb4 {[%clk 0:03:01.4]} 5. Qb3 {[%clk 0:02:53.1]} 5... a5
{[%clk 0:02:58.8]} 6. a3 {[%clk 0:02:40.4]} 6... Be7 {[%clk 0:02:58.7]} 7. g3
{[%clk 0:02:31.5]} 7... O-O {[%clk 0:02:59.5]} 8. Bg2 {[%clk 0:02:31.3]} 8... d5
{[%clk 0:03:01.4]} 9. O-O {[%clk 0:02:26.7]} 9... c6 {[%clk 0:03:02.5]} 10. Bf4
{[%clk 0:02:24.6]} 10... Nbd7 {[%clk 0:03:00.1]} 11. cxd5 {[%clk 0:02:16.4]}
11... exd5 {[%clk 0:03:00.4]} 12. Ne5 {[%clk 0:02:14.1]} 12... Nxe5 {[%clk
0:02:58.9]} 13. Bxe5 {[%clk 0:02:15]} 13... Nd7 {[%clk 0:02:55.5]} 14. Bxd5+
{[%clk 0:01:23]} 14... cxd5 {[%clk 0:02:51.4]} 15. Nxd5 {[%clk 0:01:24.9]} 15...
Kh8 {[%clk 0:02:49.3]} 16. Nc7 {[%clk 0:01:23.2]} 16... Nxe5 {[%clk 0:02:45.8]}
17. Nxa8 {[%clk 0:01:24.1]} 17... Qxd4 {[%clk 0:02:44.2]} 18. Nc7 {[%clk
0:01:19.8]} 18... Qe4 {[%clk 0:02:41.6]} 19. Rfe1 {[%clk 0:00:55.8]} 19... f4
{[%clk 0:02:42.3]} 20. Qd5 {[%clk 0:00:54.3]} 20... Qxd5 {[%clk 0:02:39.6]} 21.
Nxd5 {[%clk 0:00:56.2]} 21... fxg3 {[%clk 0:02:41.2]} 22. hxg3 {[%clk
0:00:56.7]} 22... Bc5 {[%clk 0:02:43.1]} 23. Nf4 {[%clk 0:00:38.9]} 23... g5
{[%clk 0:02:43.8]} 24. Nd3 {[%clk 0:00:40]} 24... Nxd3 {[%clk 0:02:44.5]} 25.
exd3 {[%clk 0:00:41.9]} 25... Bxf2+ {[%clk 0:02:45.7]} 26. Kg2 {[%clk
0:00:43.2]} 26... Bxe1 {[%clk 0:02:47]} 27. Rxe1 {[%clk 0:00:44.5]} 27... Kg7
{[%clk 0:02:46.4]} 28. Re7+ {[%clk 0:00:44.6]} 28... Rf7 {[%clk 0:02:47.5]} 29.
Re5 {[%clk 0:00:43.7]} 29... Rf5 {[%clk 0:02:48.1]} 30. Re7+ {[%clk 0:00:44.7]}
30... Kg6 {[%clk 0:02:49]} 31. Rc7 {[%clk 0:00:43.1]} 31... Rf8 {[%clk
0:02:49.9]} 32. Rc5 {[%clk 0:00:43.9]} 32... Bf5 {[%clk 0:02:47.6]} 33. g4
{[%clk 0:00:42]} 33... Bxg4 {[%clk 0:02:47.8]} 34. Rxa5 {[%clk 0:00:40.3]} 34...
h5 {[%clk 0:02:48]} 35. Rb5 {[%clk 0:00:40.9]} 35... h4 {[%clk 0:02:48.9]} 36.
Rxb7 {[%clk 0:00:40.7]} 36... Bf3+ {[%clk 0:02:49.5]} 0-1